bitfinex/quotes_SOLUSD_20250922
["timestamp","ask_amount","ask_price","bid_price","bid_amount"]
[1758547349372,0.7,224.13,224.07,4.75463637]
[1758547349553,0.7,224.12,224.08,37.38]
[1758547349763,0.7,224.11,224.09,37.38]
[1758547349966,0.7,224.1,224.09,37.38]
[1758547350268,0.7,224.14,224.09,37.38]
[1758547350458,4.05463637,224.11,224.09,37.38]
[1758547350673,4.75463637,224.11,224.09,37.38]
[1758547350847,4.05463637,224.1,224.09,37.38]
[1758547351047,4.75463637,224.1,224.09,37.38]
[1758547351461,4.75463637,224.1,224.09,37.34]
[1758547351763,0.7,224.1,224.09,37.32]
[1758547351969,4.75463637,224.1,224.09,37.32]
[1758547352766,9.21692998,224.1,224.09,37.32]
[1758547353967,9.21692998,224.1,224.02,39.42251851]
[1758547354174,4.05463637,224.05,224.03,37.28]
[1758547354359,4.05463637,224.04,224.0,8.56878313]
[1758547354554,4.05463637,224.02,224.01,37.26]
[1758547355063,4.05463637,224.03,224.01,37.26]
[1758547355255,0.7,224.02,223.95,0.67]
[1758547355459,4.05463637,224.0,223.96,37.26]
[1758547355648,4.05463637,224.0,223.95,14.0979256]
[1758547355849,4.05463637,223.99,223.96,37.24]
[1758547356150,0.7,224.1,223.97,37.91]
[1758547356367,4.05463637,224.07,224.0,26.0]
[1758547356568,4.05463637,224.02,224.01,37.46]
[1758547356757,4.05463637,224.03,224.01,37.46]
[1758547356956,4.05463637,224.04,224.01,37.46]
[1758547357445,5.16308579,224.07,224.01,37.46]
[1758547357750,4.05463637,224.06,224.01,37.46]
[1758547358073,4.05463637,224.06,224.01,38.13]
[1758547358251,0.7,224.06,224.01,37.46]
[1758547358574,4.05463637,224.06,224.01,37.46]
[1758547359362,4.05463637,224.06,224.01,38.13]
[1758547359659,4.46292238,224.07,224.01,38.13]
[1758547359972,4.05463637,224.07,224.01,38.13]
[1758547360662,8.51753854,224.07,224.01,38.13]
[1758547360862,4.46290217,224.07,224.01,38.13]
[1758547361067,4.46244593,224.1,224.01,37.46]
[1758547361274,4.06133515,224.09,224.01,42.19133515]
[1758547361457,4.06133515,224.08,224.01,42.19133515]
[1758547361657,0.7,224.07,224.01,38.13]
[1758547361889,4.06133515,224.06,224.01,37.46]
[1758547362074,4.06133515,224.06,224.0,39.42552192]
[1758547362257,4.06133515,224.06,224.01,37.46]
[1758547362258,0.7,224.05,224.01,37.46]
[1758547362456,0.7,224.05,223.99,0.67]
[1758547362779,4.46368789,224.03,224.0,37.46]
[1758547363190,0.7,224.05,224.0,37.46]
[1758547363191,4.06133515,224.04,224.0,37.46]
[1758547363473,5.16348833,224.05,224.0,37.46]
[1758547363678,4.06133515,224.04,224.0,37.46]
[1758547364177,4.46368789,224.03,223.99,0.67]
[1758547364358,4.46368789,224.03,223.97,30.73133515]
[1758547364559,4.46368789,224.03,223.98,37.4]
[1758547364866,4.46368789,224.03,223.98,38.07]
[1758547366355,4.76133515,224.02,223.99,37.34]
[1758547366560,0.7,224.01,223.99,37.34]
[1758547367065,4.06133515,224.0,223.99,37.34]
[1758547367266,4.76133515,224.0,223.92,0.67]
[1758547367487,4.46368789,224.03,223.93,37.34]
[1758547367674,8.52442539,224.06,223.98,4.06133515]
[1758547367999,8.52442539,224.06,223.99,37.99]
[1758547369066,8.52442539,224.06,223.99,42.05133515]
[1758547369776,4.46295031,224.07,224.0,0.67]
[1758547370277,4.46295031,224.07,224.01,37.46]
[1758547370590,5.16295031,224.07,224.01,37.46]
[1758547370761,9.22428546,224.07,224.01,37.46]
[1758547371264,4.4609002,224.17,224.05,4.06133515]
[1758547371479,4.06133515,224.13,224.06,38.11]
[1758547371663,4.76133515,224.13,224.06,38.11]
[1758547372780,4.06133515,224.11,224.06,37.44]
[1758547373081,8.52323056,224.12,224.07,0.67]
[1758547373464,4.76133515,224.11,224.06,37.44]
[1758547373662,4.06133515,224.11,224.07,37.36]
[1758547374282,4.76133515,224.11,224.07,37.36]
[1758547374581,4.46269189,224.08,224.04,26.0]
[1758547374776,4.46269189,224.08,224.05,37.36]
[1758547374777,4.76133515,224.07,224.05,37.36]
[1758547374980,4.06133515,224.07,224.05,37.36]
[1758547375885,4.76133515,224.07,224.01,0.67]
[1758547376068,0.7,224.07,224.02,37.34]
[1758547376270,4.06133515,224.05,224.02,37.34]
[1758547376573,4.06133515,224.06,224.02,38.01]
[1758547376985,4.46268677,224.09,224.03,0.67]
[1758547377166,4.06133515,224.08,224.03,0.67]
[1758547377987,4.06133515,224.07,224.02,37.34]
[1758547378169,4.06133515,224.07,224.03,0.7]
[1758547378364,4.06133515,224.07,224.02,37.34]
[1758547378565,5.95393621,224.07,224.02,38.04]
[1758547378892,4.46309024,224.06,224.02,38.04]
[1758547379089,5.95393621,224.05,224.02,37.3]
[1758547380183,0.7,224.04,223.99,0.7]
[1758547380374,5.95393621,224.02,223.99,0.7]
[1758547380575,5.95393621,224.02,223.97,37.94]
[1758547380784,4.46408642,224.01,223.98,0.7]
[1758547381275,5.95393621,224.02,223.98,0.7]
[1758547381474,10.4179915,224.02,223.97,37.24]
[1758547381668,5.95393621,224.01,223.98,0.7]
[1758547381874,4.46405529,224.02,223.97,37.24]
[1758547382075,5.95393621,224.01,223.98,0.7]
[1758547382480,5.95393621,224.02,223.97,37.24]
[1758547382682,4.46428571,224.0,223.97,37.24]
[1758547382875,5.95393621,223.99,223.95,0.7]
[1758547383173,6.65393621,223.99,223.92,126.79741524]
[1758547383387,4.46388715,224.02,223.93,37.86]
[1758547383578,6.65393621,224.02,223.94,0.7]
[1758547383780,5.95393621,224.0,223.94,0.7]
[1758547384088,5.95393621,223.98,223.92,13.54347903]
[1758547384282,5.95393621,223.96,223.91,0.9]
[1758547384482,5.95393621,223.96,223.92,37.28]
[1758547384803,4.46528242,223.95,223.92,37.28]
[1758547385095,10.41921863,223.95,223.92,37.28]
[1758547385272,10.41921863,223.95,223.92,37.98]
[1758547386405,10.41921863,223.95,223.92,37.28]
[1758547386987,10.41921863,223.95,223.92,37.22]
[1758547387380,4.46528242,223.95,223.92,37.22]
[1758547387570,10.41921863,223.95,223.92,37.22]
[1758547388976,11.11921863,223.95,223.91,37.42]
[1758547389187,5.95393621,223.93,223.91,37.42]
[1758547389688,5.95393621,223.93,223.91,0.2]
[1758547389891,0.7,223.92,223.91,0.2]
[1758547390082,6.65393621,223.93,223.91,0.2]
[1758547390396,0.7,223.93,223.91,0.2]
[1758547390594,5.95393621,223.92,223.91,0.2]
[1758547390787,10.41981688,223.92,223.91,0.2]
[1758547391394,11.11981688,223.92,223.91,0.2]
[1758547392086,24.71541089,223.92,223.91,0.2]
[1758547393204,24.71541089,223.92,223.91,1e-08]
[1758547395179,61.77541089,223.92,223.91,1e-08]
[1758547395376,24.71541089,223.92,223.91,1e-08]
[1758547395678,18.06147468,223.92,223.91,1e-08]
[1758547395910,24.69541089,223.92,223.91,1e-08]
[1758547396400,18.74147468,223.92,223.91,1e-08]
[1758547396590,24.69541089,223.92,223.91,1e-08]
[1758547397405,24.01541089,223.92,223.91,1e-08]
[1758547398499,24.69541089,223.92,223.91,1e-08]
[1758547398991,24.01541089,223.92,223.91,1e-08]
[1758547399602,24.69541089,223.92,223.91,1e-08]
[1758547401089,24.01541089,223.92,223.91,1e-08]
[1758547401296,24.69541089,223.92,223.91,1e-08]
[1758547401808,24.01541089,223.92,223.91,1e-08]
[1758547402307,24.69541089,223.92,223.91,1e-08]
[1758547402491,50.69541089,223.92,223.91,1e-08]
[1758547402684,49.6257085,223.92,223.91,1e-08]
[1758547403593,86.6857085,223.92,223.91,1e-08]
[1758547404104,13.59559401,223.91,223.83,0.68]
[1758547404285,13.59559401,223.9,223.83,0.68]
[1758547404485,2.44211691,223.84,223.83,0.68]
[1758547405587,2.44211691,223.86,223.83,0.68]
[1758547405787,15.63267675,223.89,223.84,0.68]
[1758547406414,16.31267675,223.89,223.84,0.68]
[1758547406932,16.31267675,223.89,223.85,0.68]
[1758547407594,13.59559401,223.87,223.78,0.87]
[1758547407808,15.63477172,223.86,223.78,0.87]
[1758547408114,2.44211691,223.8,223.78,0.87]
[1758547408310,2.44211691,223.8,223.79,0.67]
[1758547409110,2.44211691,223.8,223.78,0.2]
[1758547409297,2.44211691,223.79,223.78,0.87]
[1758547409496,2.44211691,223.79,223.78,0.2]
[1758547409907,6.91059181,223.79,223.78,0.2]
[1758547410414,11.16981325,223.82,223.78,0.87]
[1758547410711,2.44211691,223.79,223.78,0.87]
[1758547411300,2.44211691,223.79,223.78,0.2]
[1758547411619,2.44211691,223.79,223.78,0.87]
[1758547411997,6.91059181,223.79,223.78,0.87]
[1758547413622,15.63826458,223.81,223.78,0.2]
[1758547413828,2.44211691,223.79,223.78,0.2]
[1758547414321,4.46807559,223.81,223.78,0.87]
[1758547414621,6.9101925,223.81,223.79,0.67]
[1758547414797,6.9101925,223.81,223.78,0.2]
[1758547414993,4.46807559,223.81,223.79,0.67]
[1758547415222,2.44211691,223.8,223.79,0.67]
[1758547416622,2.44211691,223.8,223.78,0.2]
[1758547416810,2.44211691,223.8,223.78,0.87]
[1758547417123,2.44211691,223.79,223.78,0.87]
[1758547418004,2.44211691,223.79,223.78,0.2]
[1758547418902,3.14211691,223.79,223.78,0.2]
[1758547419515,7.61059181,223.79,223.78,0.2]
[1758547419819,21.20618582,223.79,223.78,0.2]
[1758547422915,7.61059181,223.79,223.78,0.2]
[1758547423615,6.91059181,223.79,223.78,0.2]
[1758547424823,2.44211691,223.79,223.78,0.2]
[1758547425131,4.46787597,223.82,223.78,0.87]
[1758547425318,2.44211691,223.81,223.79,0.67]
[1758547425501,2.44211691,223.81,223.78,0.2]
[1758547425696,2.44211691,223.82,223.79,0.67]
[1758547425901,2.44211691,223.84,223.79,0.67]
[1758547426317,2.44211691,223.83,223.8,0.67]
[1758547426510,2.44211691,223.82,223.8,0.67]
[1758547426705,2.44211691,223.81,223.78,0.2]
[1758547426913,2.44211691,223.79,223.78,0.87]
[1758547427726,0.7,223.84,223.78,0.87]
[1758547427727,2.44211691,223.81,223.78,0.87]
[1758547427914,6.91033207,223.81,223.79,0.67]
[1758547428725,6.91033207,223.81,223.78,0.2]
[1758547428902,2.44211691,223.79,223.78,0.2]
[1758547429815,4.46821516,223.81,223.78,0.2]
[1758547430524,4.46821516,223.81,223.78,0.87]
[1758547432814,7.61033207,223.81,223.78,0.2]
[1758547433020,6.91033207,223.81,223.78,0.2]
[1758547433633,4.46821516,223.81,223.78,0.2]
[1758547433819,4.46821516,223.81,223.78,0.87]
[1758547434127,4.46790225,223.82,223.79,0.67]
[1758547434636,4.46790225,223.82,223.78,0.2]
[1758547434841,4.46790225,223.82,223.78,0.87]
[1758547435336,4.46790225,223.82,223.79,0.67]
[1758547436233,11.16804986,223.86,223.78,0.2]
[1758547436407,4.46727719,223.85,223.8,0.67]
[1758547436612,7.6093941,223.85,223.8,0.67]
[1758547436813,2.44211691,223.84,223.8,0.67]
[1758547437117,3.14211691,223.84,223.79,0.68]
[1758547437317,2.44211691,223.84,223.8,0.68]
[1758547437740,3.15211691,223.83,223.78,0.2]
[1758547437922,2.44211691,223.82,223.78,0.2]
[1758547438239,0.71,223.83,223.79,0.68]
[1758547439012,4.46787597,223.82,223.78,0.2]
[1758547439424,4.46787597,223.82,223.78,0.88]
[1758547440136,5.17787597,223.82,223.78,0.88]
[1758547440325,1.56312886,223.81,223.78,0.2]
[1758547440643,1.56312886,223.8,223.78,0.2]
[1758547440943,13.44281878,223.82,223.78,0.2]
[1758547441138,0.71,223.81,223.78,0.2]
[1758547441628,12.73281878,223.82,223.78,0.2]
[1758547441827,5.17807559,223.81,223.78,0.2]
[1758547442026,1.56312886,223.79,223.78,0.2]
[1758547442541,2.27312886,223.79,223.78,0.2]
[1758547443226,2.27312886,223.79,223.69,0.88]
[1758547443227,13.59559401,223.78,223.69,0.88]
[1758547443544,1.56312886,223.73,223.69,0.88]
[1758547443850,1.56312886,223.7,223.69,0.2]
[1758547444024,6.03340154,223.7,223.69,0.2]
[1758547444520,4.47027268,223.7,223.69,0.2]
[1758547445228,6.74340154,223.7,223.69,0.2]
[1758547445431,4.47027268,223.7,223.69,0.2]
[1758547445832,1.56312886,223.71,223.69,0.2]
[1758547446033,6.03289684,223.73,223.69,0.88]
[1758547446537,6.74289684,223.73,223.69,0.2]
[1758547447332,0.71,223.72,223.69,0.2]
[1758547448137,4.47007286,223.71,223.69,0.2]
[1758547448331,5.18007286,223.71,223.69,0.2]
[1758547448533,0.71,223.7,223.69,0.2]
[1758547448735,4.47007286,223.71,223.69,0.2]
[1758547448736,5.18007286,223.71,223.69,0.2]
[1758547450126,4.46987305,223.72,223.69,0.2]
[1758547450429,2.27312886,223.7,223.69,0.2]
[1758547450952,17.20768454,223.72,223.69,0.2]
[1758547451321,1.56312886,223.73,223.69,0.2]
[1758547451622,2.27312886,223.77,223.7,2.24312886]
[1758547451817,2.27312886,223.77,223.71,0.68]
[1758547452232,4.469074,223.76,223.71,0.68]
[1758547452427,5.179074,223.76,223.71,0.68]
[1758547452833,0.71,223.75,223.71,0.68]
[1758547453030,0.71,223.75,223.69,1.76312886]
[1758547453927,0.71,223.75,223.69,0.2]
[1758547454229,4.46947349,223.74,223.69,1.76312886]
[1758547454428,4.46947349,223.74,223.7,0.68]
[1758547456651,15.63980824,223.79,223.73,1.56312886]
[1758547456849,16.34980824,223.79,223.73,2.24312886]
[1758547457432,16.34980824,223.79,223.73,0.68]
[1758547457832,17.9129371,223.79,223.72,1.56312886]
[1758547458131,0.71,223.78,223.72,1.56312886]
[1758547459347,0.71,223.77,223.72,1.56312886]
[1758547459554,0.71,223.77,223.72,2.24312886]
[1758547460138,0.71,223.77,223.73,0.68]
[1758547460345,6.03178546,223.79,223.73,0.68]
[1758547460346,4.46824768,223.81,223.76,1.56312886]
[1758547460655,4.46824768,223.81,223.77,2.24312886]
[1758547460837,4.46786501,223.83,223.8,1.56312886]
[1758547461041,4.46786501,223.83,223.8,2.24312886]
[1758547461839,16.34575984,223.85,223.79,1.56312886]
[1758547462043,17.9088887,223.85,223.78,2.24312886]
[1758547463148,16.34575984,223.85,223.79,1.56312886]
[1758547464941,16.34575984,223.85,223.75,37.16848265]
[1758547464942,2.27312886,223.84,223.75,37.16848265]
[1758547465144,1.56312886,223.81,223.75,26.68]
[1758547465361,2.27312886,223.81,223.75,26.68]
[1758547465542,2.27312886,223.81,223.75,0.68]
[1758547466066,4.46827524,223.8,223.75,0.68]
[1758547466562,4.46827524,223.8,223.75,2.24312886]
[1758547466762,5.17827524,223.8,223.75,2.24312886]
[1758547466990,0.71,223.79,223.75,1.56312886]
[1758547467464,0.71,223.79,223.74,37.76312886]
[1758547467637,4.46827524,223.8,223.76,1.56312886]
[1758547467840,4.46827524,223.8,223.76,2.27312886]
[1758547468241,4.46807559,223.81,223.77,0.71]
[1758547468867,0.68,223.8,223.75,1.56312886]
[1758547469055,0.68,223.8,223.75,2.27312886]
[1758547469246,0.68,223.8,223.75,1.56312886]
[1758547469447,15.63826458,223.81,223.76,0.71]
[1758547469965,16.31826458,223.81,223.76,0.71]
[1758547470140,0.68,223.8,223.75,2.27312886]
[1758547470337,17.20139344,223.81,223.75,0.71]
[1758547470541,2.24312886,223.8,223.74,36.2]
[1758547470857,0.68,223.79,223.74,36.2]
[1758547471246,0.68,223.79,223.74,36.91]
[1758547471751,4.46867459,223.78,223.74,37.66312886]
[1758547471944,4.46867459,223.78,223.75,0.71]
[1758547472660,1.56312886,223.76,223.72,13.44236585]
[1758547472968,2.24312886,223.75,223.69,0.91]
[1758547473643,4.46947349,223.74,223.69,0.91]
[1758547473845,4.46947349,223.74,223.7,0.71]
[1758547474364,6.03260235,223.74,223.7,0.71]
[1758547474750,17.20628609,223.74,223.7,0.71]
[1758547475144,1.56312886,223.73,223.69,0.2]
[1758547475546,2.24312886,223.73,223.69,0.2]
[1758547475742,4.46987305,223.72,223.69,0.91]
[1758547475947,1.56312886,223.7,223.69,0.2]
[1758547476671,15.64455568,223.72,223.69,0.2]
[1758547476672,1.56312886,223.71,223.69,0.2]
[1758547477174,1.56312886,223.7,223.69,0.2]
[1758547477466,1.56312886,223.7,223.63,15.01091782]
[1758547477467,2.24312886,223.7,223.62,0.71]
[1758547477652,15.64945226,223.65,223.62,36.71]
[1758547478058,15.64945226,223.65,223.62,0.71]
[1758547479062,11.17818019,223.65,223.62,0.71]
[1758547479267,4.47107216,223.66,223.63,0.71]
[1758547479480,15.64875256,223.66,223.63,0.71]
[1758547479673,15.64875256,223.66,223.6,0.71]
[1758547479847,15.64875256,223.66,223.61,36.02]
[1758547480176,15.64875256,223.66,223.62,0.71]
[1758547480555,17.21188142,223.66,223.62,36.0]
[1758547480750,1.56312886,223.63,223.56,0.71]
[1758547480949,1.56312886,223.62,223.57,36.0]
[1758547481178,15.65225168,223.61,223.58,0.71]
[1758547481750,15.65225168,223.61,223.57,36.0]
[1758547481968,15.65225168,223.61,223.56,26.71]
[1758547482172,1.56312886,223.59,223.55,13.45261317]
[1758547482358,1.56312886,223.58,223.51,1.56312886]
[1758547482565,1.56312886,223.57,223.52,36.69]
[1758547482792,1.56312886,223.57,223.52,0.71]
[1758547483073,16.33575236,223.56,223.5,0.71]
[1758547483289,16.33575236,223.56,223.51,13.45261317]
[1758547483577,16.33575236,223.56,223.51,36.67]
[1758547483780,15.65575236,223.56,223.52,0.71]
[1758547483981,17.21888122,223.56,223.52,36.67]
[1758547484279,17.89888122,223.56,223.52,35.96]
[1758547484491,0.68,223.55,223.51,13.32948681]
[1758547484673,0.68,223.55,223.51,35.94]
[1758547484979,2.24312886,223.55,223.5,0.71]
[1758547485169,15.65715307,223.54,223.51,35.94]
[1758547485687,15.65715307,223.54,223.5,36.65]
[1758547486076,15.65715307,223.54,223.5,0.71]
[1758547486274,15.65715307,223.54,223.5,36.63]
[1758547486473,15.65715307,223.54,223.5,0.71]
[1758547486970,17.22028193,223.54,223.5,0.71]
[1758547487487,15.65715307,223.54,223.51,0.71]
[1758547487687,15.65715307,223.54,223.52,0.71]
[1758547487882,4.4734723,223.54,223.52,0.71]
[1758547488074,4.4734723,223.54,223.53,0.71]
[1758547488673,15.65575236,223.56,223.53,0.71]
[1758547488882,15.65575236,223.56,223.51,0.71]
[1758547489085,15.65575236,223.56,223.52,36.61]
[1758547489278,15.65575236,223.56,223.53,0.71]
[1758547489791,15.65575236,223.56,223.52,35.9]
[1758547489969,0.68,223.55,223.51,35.9]
[1758547490171,17.21888122,223.56,223.52,0.71]
[1758547490791,15.65575236,223.56,223.52,0.71]
[1758547490966,29.91661946,223.68,223.51,35.9]
[1758547490967,23.03536081,223.66,223.55,1.56312886]
[1758547491170,23.03536081,223.66,223.57,1.56312886]
[1758547491171,15.64945226,223.65,223.57,1.56312886]
[1758547491370,1.56312886,223.64,223.58,36.59]
[1758547492484,13.59559401,223.62,223.53,0.71]
[1758547492695,15.65575236,223.56,223.53,0.71]
[1758547493378,17.89888122,223.56,223.53,35.84]
[1758547494075,17.89888122,223.56,223.52,35.84]
[1758547495279,17.21888122,223.56,223.52,35.84]
[1758547495597,17.22028193,223.54,223.5,0.71]
[1758547495796,17.22028193,223.54,223.51,35.82]
[1758547495982,17.22028193,223.54,223.5,35.82]
[1758547495983,17.90028193,223.54,223.5,35.82]
[1758547496382,17.22028193,223.54,223.5,35.82]
[1758547496587,15.65715307,223.54,223.51,0.71]
[1758547498386,15.65715307,223.54,223.52,0.66]
[1758547498989,11.18368077,223.54,223.52,0.66]
[1758547499187,11.18368077,223.54,223.5,35.82]
[1758547499591,11.89368077,223.54,223.5,35.82]
[1758547499985,13.45680963,223.54,223.5,35.82]
[1758547500188,12.74680963,223.54,223.5,0.66]
[1758547500400,1.56312886,223.51,223.48,13.6562336]
[1758547500608,2.44988059,223.49,223.48,13.6562336]
[1758547500902,3.15988059,223.49,223.48,0.2]
[1758547501089,7.63435372,223.49,223.48,0.2]
[1758547501293,5.18447313,223.49,223.48,0.2]
[1758547501991,22.36636099,223.55,223.48,0.2]
[1758547501992,2.44988059,223.52,223.48,0.86]
[1758547502398,4.47387258,223.52,223.49,3.10988059]
[1758547502707,4.47387258,223.52,223.5,0.66]
[1758547503183,15.65745914,223.54,223.5,0.66]
[1758547503503,18.10733973,223.54,223.5,0.66]
[1758547503703,18.10733973,223.54,223.48,11.38398684]
[1758547503905,18.10733973,223.54,223.49,35.74]
[1758547504107,18.10733973,223.54,223.5,0.66]
[1758547504511,15.65745914,223.54,223.5,0.66]
[1758547504705,18.10733973,223.54,223.5,0.66]
[1758547504905,15.65745914,223.54,223.5,0.66]
[1758547505405,20.0,223.67,223.5,0.66]
[1758547505406,4.47327219,223.55,223.51,0.66]
[1758547505608,0.71,223.54,223.51,116.38]
[1758547505902,18.10633327,223.55,223.51,116.38]
[1758547506104,15.65645268,223.55,223.51,116.38]
[1758547506308,15.65645268,223.55,223.51,117.04]
[1758547507219,15.65645268,223.55,223.52,0.66]
[1758547507501,11.18318049,223.55,223.51,116.38]
[1758547507704,11.89318049,223.55,223.51,116.38]
[1758547508000,11.89318049,223.55,223.51,117.04]
[1758547508787,6.92295269,223.56,223.51,116.38]
[1758547508788,4.4730721,223.56,223.51,116.38]
[1758547508989,4.4730721,223.56,223.52,0.66]
[1758547509202,15.65575236,223.56,223.53,0.66]
[1758547509388,11.18268026,223.56,223.54,0.66]
[1758547510803,11.18268026,223.56,223.54,36.42]
[1758547511807,11.18268026,223.56,223.54,0.66]
[1758547512029,11.18268026,223.56,223.54,36.38]
[1758547512811,15.65575236,223.56,223.54,36.38]
[1758547513012,22.35222746,223.7,223.54,35.72]
[1758547513013,13.59559401,223.64,223.54,35.72]
[1758547513190,0.71,223.65,223.58,2.44988059]
[1758547513398,0.71,223.65,223.59,36.38]
[1758547513595,3.15988059,223.64,223.59,35.72]
[1758547513894,3.15988059,223.67,223.6,0.66]
[1758547514097,3.15988059,223.67,223.6,3.10988059]
[1758547514295,0.71,223.67,223.61,3.10988059]
[1758547514495,0.68,223.68,223.61,0.66]
[1758547514693,0.68,223.68,223.61,3.10988059]
[1758547514894,0.68,223.68,223.62,2.44988059]
[1758547514895,15.64805292,223.67,223.62,2.44988059]
[1758547515096,16.32805292,223.67,223.62,3.10988059]
[1758547515397,16.32805292,223.67,223.63,38.82988059]
[1758547515398,15.64805292,223.67,223.63,38.82988059]
[1758547515600,4.47087226,223.67,223.66,2.44988059]
[1758547515904,4.47087226,223.67,223.66,3.10988059]
[1758547516100,4.47087226,223.67,223.65,2.44988059]
[1758547516304,4.47087226,223.67,223.66,36.38]
[1758547516513,4.47087226,223.67,223.66,0.66]
[1758547516698,4.47087226,223.67,223.66,35.72]
[1758547516899,3.12988059,223.67,223.63,13.44778896]
[1758547517098,3.12988059,223.67,223.48,20.2]
[1758547517099,2.44988059,223.64,223.57,35.72]
[1758547517307,2.44988059,223.62,223.57,35.72]
[1758547517609,3.12988059,223.61,223.56,13.45261317]
[1758547517911,3.12988059,223.61,223.55,35.72]
[1758547517912,0.68,223.6,223.55,35.72]
[1758547518299,0.68,223.6,223.55,36.38]
[1758547518694,0.68,223.6,223.55,0.66]
[1758547518899,15.6543519,223.58,223.55,35.72]
[1758547519613,4.47267197,223.58,223.56,0.66]
[1758547520216,15.6543519,223.58,223.55,35.72]
[1758547520514,15.6543519,223.58,223.56,0.66]
[1758547521021,11.18167993,223.58,223.56,0.66]
[1758547524318,10.68167993,223.58,223.56,0.66]
[1758547525203,10.68167993,223.58,223.55,35.72]
[1758547525399,10.68167993,223.58,223.55,36.38]
[1758547525619,0.68,223.57,223.55,35.72]
[1758547525801,10.68167993,223.58,223.54,35.72]
[1758547526004,10.68167993,223.58,223.55,0.66]
[1758547527221,4.47227191,223.6,223.56,0.7]
[1758547527409,4.47227191,223.6,223.57,36.42]
[1758547528211,15.65257039,223.61,223.57,36.42]
[1758547528401,16.37257039,223.61,223.57,36.42]
[1758547528810,16.37257039,223.61,223.57,35.72]
[1758547529535,4.47167195,223.63,223.6,2.44988059]
[1758547529739,4.47167195,223.63,223.62,2.44988059]
[1758547529926,4.47107216,223.66,223.62,38.84988059]
[1758547530111,4.47107216,223.66,223.63,2.44988059]
[1758547530428,15.64875256,223.66,223.63,2.44988059]
[1758547530802,16.36875256,223.66,223.62,38.14988059]
[1758547531627,15.64875256,223.66,223.63,35.7]
[1758547531815,16.36875256,223.66,223.63,35.7]
[1758547533219,15.64875256,223.66,223.63,35.7]
[1758547534007,11.1776804,223.66,223.63,35.7]
[1758547534725,11.1776804,223.66,223.64,0.7]
[1758547534919,4.47087226,223.67,223.65,0.7]
[1758547536131,11.17656088,223.69,223.66,38.84988059]
[1758547536525,11.17656088,223.69,223.66,0.7]
[1758547536824,11.17656088,223.69,223.67,35.7]
[1758547537406,5.19007286,223.71,223.68,3.14988059]
[1758547537407,4.47007286,223.71,223.68,3.14988059]
[1758547537620,4.47007286,223.71,223.69,0.7]
[1758547538025,4.47007286,223.71,223.7,35.7]
[1758547538217,15.64385642,223.73,223.7,35.7]
[1758547538530,16.36385642,223.73,223.7,35.7]
[1758547539635,15.64385642,223.73,223.7,35.7]
[1758547540218,11.17418316,223.73,223.7,35.7]
[1758547541748,11.17418316,223.73,223.68,35.68]
[1758547541749,3.16988059,223.72,223.68,35.68]
[1758547542245,0.72,223.71,223.67,80.6]
[1758547542434,0.72,223.7,223.68,35.68]
[1758547543626,4.47047252,223.69,223.68,35.68]
[1758547546047,4.47047252,223.69,223.65,0.7]
[1758547546048,15.64665384,223.69,223.65,0.7]
[1758547546238,0.72,223.68,223.62,107.3]
[1758547546541,18.09653443,223.69,223.63,36.38]
[1758547546747,15.64665384,223.69,223.63,38.82988059]
[1758547547040,15.64665384,223.69,223.64,3.14988059]
[1758547547245,15.64665384,223.69,223.65,0.7]
[1758547547428,4.47047252,223.69,223.68,2.44988059]
[1758547547637,4.47047252,223.69,223.68,3.14988059]
[1758547548221,11.17489782,223.72,223.68,3.14988059]
[1758547548424,11.17489782,223.72,223.7,2.44988059]